bitfinex-derivatives/quotes_ETHF0:USTF0_20210107
["timestamp","ask_amount","ask_price","bid_price","bid_amount"]
[1610028461173,4.00959,1217.3,1216.3,51.9888]
[1610028462373,4.00959,1217.3,1215.9,2.0691]
[1610028462576,4.00959,1217.3,1216.7,56.6376]
[1610028462775,4.00959,1217.3,1217.2,4.00959]
[1610028463177,4.00959,1217.3,1216.7,56.6376]
[1610028463677,3.475,1217.7,1216.7,56.6376]
[1610028463877,9.6711,1218.7,1216.7,56.6376]
[1610028464682,3.475,1218.7,1216.7,56.6376]
[1610028464881,4.00959,1218.1,1217.9,4.00959]
[1610028467784,4.00959,1218.1,1217.7,59.5157]
[1610028468884,2.1271,1218.6,1217.8,4.00959]
[1610028469383,2.1271,1218.6,1217.7,59.5157]
[1610028470886,4.00959,1217.8,1217.7,59.5157]
[1610028471087,4.00959,1217.8,1217.3,4.00959]
[1610028472892,4.00959,1217.8,1217.7,4.00959]
[1610028473492,4.00959,1217.8,1217.2,63.1073]
[1610028474892,4.00959,1217.4,1217.2,67.11689]
[1610028475192,4.00959,1217.4,1217.2,63.1073]
[1610028475593,2.2377,1218.1,1217.2,63.1073]
[1610028476193,12.3571,1218.6,1217.2,63.1073]
[1610028476894,4.00959,1217.6,1217.5,4.00959]
[1610028477694,4.00959,1217.6,1217.2,63.1073]
[1610028478999,4.00959,1217.4,1217.2,67.11689]
[1610028480801,3.2017,1218.2,1217.2,67.11689]
[1610028481005,4.00959,1217.8,1217.5,4.00959]
[1610028482402,4.00959,1217.8,1217.5,12.26299]
[1610028482602,4.00959,1217.8,1217.5,8.2534]
[1610028482802,3.2017,1218.2,1216.0,6.2156]
[1610028483002,2.1271,1218.6,1218.1,4.00959]
[1610028483402,3.475,1218.7,1218.4,53.5876]
[1610028483604,6.1048,1219.1,1218.1,4.00959]
[1610028483802,33.475,1219.9,1218.5,61.8969]
[1610028484202,3.475,1219.9,1218.5,61.8969]
[1610028485003,4.00959,1218.8,1218.6,4.00959]
[1610028491412,4.00959,1218.8,1217.9,61.707]
[1610028493016,4.00959,1218.0,1217.9,61.707]
[1610028493816,4.00959,1218.0,1217.5,4.00959]
[1610028494820,4.00959,1218.0,1217.1,60.8883]
[1610028495016,4.00959,1217.3,1217.1,64.89789]
[1610028497722,4.00959,1217.3,1215.9,2.0691]
[1610028497923,4.00959,1217.3,1216.0,64.6077]
[1610028498122,4.00959,1217.3,1216.0,67.4661]
[1610028499122,4.00959,1216.7,1216.4,4.00959]
[1610028499324,4.00959,1216.7,1216.5,8.9578]
[1610028501124,2.4534,1217.6,1216.5,8.9578]
[1610028503025,4.00959,1216.7,1216.6,4.00959]
[1610028503325,2.4534,1217.6,1216.6,4.00959]
[1610028503727,2.4534,1217.6,1216.8,64.0525]
[1610028504328,3.1671,1217.9,1216.8,64.0525]
[1610028504528,35.7931,1218.1,1216.6,4.00959]
[1610028504928,35.7931,1218.1,1216.3,50.1928]
[1610028505125,4.00959,1216.5,1216.3,50.1928]
[1610028505527,2.5788,1217.5,1216.3,50.1928]
[1610028507032,4.00959,1216.9,1216.7,4.00959]
[1610028509535,2.5788,1217.5,1216.7,4.00959]
[1610028510235,3.1456,1217.8,1216.7,4.00959]
[1610028511034,4.00959,1216.9,1216.7,4.00959]
[1610028511233,4.00959,1216.9,1216.3,50.1928]
[1610028513036,4.00959,1216.9,1216.7,4.00959]
[1610028514237,4.00959,1216.9,1216.7,11.89649]
[1610028515841,4.00959,1216.9,1216.7,7.8869]
[1610028517143,4.00959,1217.1,1216.8,4.00959]
[1610028518044,4.00959,1217.1,1216.7,7.8869]
[1610028519148,4.00959,1216.9,1216.7,7.8869]
[1610028527249,4.00959,1216.9,1216.1,4.00959]
[1610028527648,4.00959,1216.9,1216.0,2.8584]
[1610028528050,4.00959,1216.9,1215.8,50.9127]
[1610028529251,4.00959,1216.2,1216.1,4.00959]
[1610028531854,4.00959,1216.2,1215.8,50.9127]
[1610028533976,2.7462,1216.8,1215.9,4.00959]
[1610028535259,4.00959,1216.2,1216.1,4.00959]
[1610028535458,4.00959,1216.2,1215.8,50.9127]
[1610028537161,4.00959,1216.2,1216.0,4.00959]
[1610028537865,4.00959,1216.2,1214.1,6.025]
[1610028538065,4.00959,1216.2,1214.4,66.6203]
[1610028539165,4.00959,1216.0,1215.7,4.00959]
[1610028543370,4.00959,1216.0,1215.8,6.7511]
[1610028556787,4.00959,1216.0,1213.4,12.2339]
[1610028556988,7.48459,1216.0,1214.2,57.4109]
[1610028557386,4.00959,1215.1,1214.9,4.00959]
[1610028557988,4.00959,1215.1,1214.2,57.4109]
[1610028559090,4.00959,1215.1,1213.4,6.112]
[1610028559291,4.00959,1214.2,1214.1,4.00959]
[1610028559490,52.8353,1215.6,1214.1,4.00959]
[1610028559690,55.9356,1215.6,1214.1,4.00959]
[1610028560190,3.1003,1215.6,1214.1,4.00959]
[1610028561390,4.00959,1214.2,1214.1,4.00959]
[1610028563493,3.0263,1215.3,1214.2,63.3339]
[1610028565292,4.00959,1214.5,1214.3,4.00959]
[1610028565594,3.0263,1215.3,1214.3,4.00959]
[1610028567298,4.00959,1214.6,1214.5,4.00959]
[1610028568197,4.00959,1214.6,1214.2,63.3339]
[1610028568998,4.00959,1214.6,1212.2,6.1879]
[1610028569299,4.00959,1214.4,1214.1,4.00959]
[1610028571400,4.00959,1214.6,1214.3,4.00959]
[1610028573598,4.00959,1214.6,1212.2,6.1879]
[1610028573800,4.00959,1214.6,1213.5,46.0238]
[1610028575301,48.598,1215.0,1214.1,4.00959]
[1610028577405,4.00959,1214.2,1214.1,4.00959]
[1610028578506,4.00959,1214.2,1213.5,46.0238]
[1610028579307,4.00959,1214.0,1213.8,4.00959]
[1610028579708,52.073,1215.0,1213.8,4.00959]
[1610028580809,3.475,1215.0,1213.8,4.00959]
[1610028581410,4.00959,1214.6,1214.5,4.00959]
[1610028581611,4.00959,1214.6,1213.7,59.029]
[1610028582213,3.475,1215.0,1213.7,59.029]
[1610028582712,3.475,1215.0,1212.7,5.9205]
[1610028582914,3.475,1215.0,1213.6,60.6333]
[1610028583113,3.475,1215.0,1212.7,5.9205]
[1610028583314,3.475,1215.0,1214.9,4.00959]
[1610028583715,3.475,1215.0,1214.9,11.89439]
[1610028585917,6.912,1215.6,1214.9,11.89439]
[1610028587322,4.00959,1215.0,1214.9,11.89439]
[1610028587520,6.912,1215.6,1214.9,11.89439]
[1610028589219,6.912,1215.6,1214.9,4.00959]
[1610028589420,4.00959,1215.9,1215.5,12.70429]
[1610028590224,3.475,1216.2,1215.5,12.70429]
[1610028591324,3.475,1216.2,1216.1,4.00959]
[1610028591521,10.92159,1216.6,1216.1,4.00959]
[1610028591721,10.92159,1216.6,1216.1,72.43579]
[1610028591921,6.912,1216.6,1216.1,72.43579]
[1610028593421,6.912,1216.6,1216.5,4.00959]
[1610028594621,6.912,1216.6,1216.1,68.4262]
[1610028595423,10.92159,1216.6,1216.4,4.00959]
[1610028595623,10.92159,1216.6,1214.0,12.1704]
[1610028595823,10.92159,1216.6,1215.6,50.2674]
[1610028595824,14.39659,1216.6,1215.6,50.2674]
[1610028596925,44.39659,1216.6,1215.6,50.2674]
[1610028597125,44.39659,1216.6,1215.0,68.6607]
[1610028597327,57.83139,1216.6,1215.0,68.6607]
[1610028597525,53.8218,1216.6,1215.1,4.00959]
[1610028598627,63.8218,1216.6,1215.1,4.00959]
[1610028599326,63.8218,1216.6,1215.0,68.6607]
[1610028599526,4.00959,1215.4,1215.1,4.00959]
[1610028599727,4.00959,1215.4,1215.0,68.6607]
[1610028600327,4.00959,1215.4,1213.0,6.1006]
[1610028600528,14.39659,1215.4,1213.5,51.5351]
[1610028601528,4.00959,1214.9,1214.8,4.00959]
[1610028601928,6.912,1215.4,1214.8,4.00959]
[1610028603429,6.912,1215.4,1215.3,4.00959]
[1610028605232,3.475,1216.3,1215.3,4.00959]
[1610028605432,3.475,1216.3,1216.2,4.00959]
[1610028605632,6.912,1216.5,1216.2,4.00959]
[1610028606032,3.475,1217.0,1216.2,4.00959]
[1610028606233,50.617,1218.2,1216.2,4.00959]
[1610028607033,20.617,1218.2,1216.2,4.00959]
[1610028607434,20.617,1218.2,1217.0,4.00959]
[1610028607834,20.617,1218.2,1217.0,54.67989]
[1610028608235,13.705,1218.2,1217.0,54.67989]
[1610028609439,13.705,1218.2,1217.9,4.00959]
[1610028609640,10.23,1218.2,1217.9,4.00959]
[1610028610844,10.23,1218.2,1217.7,60.9974]
[1610028611445,4.00959,1218.0,1217.9,4.00959]
[1610028613447,14.23959,1218.2,1217.9,4.00959]
[1610028615450,4.00959,1218.0,1217.9,4.00959]
[1610028615850,4.00959,1218.0,1216.3,6.2193]
[1610028616052,14.39659,1218.0,1217.3,47.5717]
[1610028616249,4.00959,1218.0,1217.3,47.5717]
[1610028617553,4.00959,1217.4,1217.1,4.00959]
[1610028617755,4.00959,1217.4,1215.5,5.838]
[1610028617953,14.39659,1217.4,1216.1,48.0015]
[1610028618153,10.92159,1217.4,1216.1,48.0015]
[1610028619454,4.00959,1216.7,1216.6,4.00959]
[1610028620256,4.00959,1216.7,1216.0,57.4724]
[1610028621455,4.00959,1216.7,1216.3,4.00959]
[1610028622357,4.00959,1216.7,1216.3,11.95199]
[1610028623557,4.00959,1216.7,1216.5,4.00959]
[1610028623856,10.387,1217.4,1216.5,4.00959]
[1610028624355,10.387,1217.4,1216.7,55.1711]
[1610028624555,10.387,1217.4,1216.5,4.00959]
[1610028624756,10.387,1217.4,1216.1,48.7999]
[1610028625457,4.00959,1216.8,1216.4,4.00959]
[1610028625657,10.387,1217.4,1216.4,4.00959]
[1610028626958,10.387,1217.4,1216.4,12.19309]
[1610028627561,4.00959,1217.1,1217.0,4.00959]
[1610028628863,4.00959,1217.1,1216.5,68.1524]
[1610028629463,4.00959,1216.7,1216.5,68.1524]
[1610028634166,4.00959,1216.7,1214.6,6.0049]
[1610028634367,4.00959,1216.7,1215.7,66.4261]
[1610028635567,4.00959,1216.1,1215.8,4.00959]
[1610028635968,2.501,1216.9,1215.8,4.00959]
[1610028636368,67.1908,1217.2,1215.8,4.00959]
[1610028636868,3.1456,1217.3,1215.8,4.00959]
[1610028637070,3.1456,1217.3,1216.0,66.2452]
[1610028637669,3.1456,1217.3,1216.3,4.00959]
[1610028638469,10.0,1216.7,1216.3,4.00959]
[1610028638869,10.0,1216.7,1216.3,13.15939]
[1610028639671,10.0,1216.7,1216.6,4.00959]
[1610028647679,14.00959,1216.7,1216.3,13.15939]
[1610028648280,14.00959,1216.7,1216.3,4.00959]
[1610028649580,4.00959,1216.5,1216.3,4.00959]
[1610028650784,3.98769772,1216.5,1216.3,4.00959]
[1610028652481,3.98769772,1216.5,1216.3,51.93679]
[1610028652982,10.0,1216.7,1216.3,51.93679]
[1610028653586,10.0,1216.7,1216.6,4.00959]
[1610028657689,10.0,1216.7,1216.6,60.53859]
[1610028659392,10.0,1216.7,1216.6,4.00959]
[1610028662896,10.0,1216.7,1216.3,64.1287]
[1610028663696,4.00959,1216.5,1216.4,4.00959]
[1610028665296,10.0,1216.7,1216.4,4.00959]
[1610028665699,4.00959,1216.5,1216.4,4.00959]
[1610028670200,10.0,1216.7,1216.4,4.00959]
[1610028671702,4.00959,1216.5,1216.4,4.00959]
[1610028674704,4.00959,1216.5,1214.7,5.899]
[1610028674911,7.48459,1216.5,1214.7,56.11]
[1610028675706,3.475,1216.5,1215.1,4.00959]
[1610028675906,33.475,1216.5,1215.1,4.00959]
[1610028676307,33.475,1216.5,1214.7,56.11]
[1610028676507,35.495,1216.5,1214.7,56.11]
[1610028677708,4.00959,1215.1,1214.8,4.00959]
[1610028677909,35.495,1216.5,1214.8,4.00959]
[1610028678110,5.495,1216.5,1214.8,4.00959]
[1610028678310,35.495,1216.5,1214.8,4.00959]
[1610028679717,4.00959,1215.2,1214.8,4.00959]
[1610028679911,35.495,1216.5,1214.8,4.00959]
[1610028681112,5.495,1216.5,1214.8,4.00959]
[1610028681711,5.495,1216.5,1215.2,4.00959]
[1610028682314,35.495,1216.5,1215.2,4.00959]
[1610028682613,35.495,1216.5,1214.7,56.11]
[1610028683313,5.495,1216.5,1214.7,56.11]
[1610028683715,5.495,1216.5,1215.9,4.00959]
[1610028684215,5.495,1216.5,1215.5,62.3678]
[1610028684716,3.475,1216.5,1215.5,62.3678]
[1610028685818,4.00959,1215.8,1215.6,4.00959]
[1610028686517,3.475,1216.5,1215.6,4.00959]
[1610028687721,4.00959,1216.3,1216.1,4.00959]
[1610028687919,3.475,1216.5,1216.1,4.00959]
[1610028688122,6.3516,1217.2,1216.3,54.9175]
[1610028689821,4.00959,1216.4,1216.3,58.92709]
[1610028690621,4.00959,1216.4,1216.3,4.00959]
[1610028691623,4.00959,1216.4,1216.0,55.448]
[1610028691823,4.00959,1216.1,1216.0,55.448]
[1610028692023,6.3516,1217.2,1216.0,55.448]
[1610028693123,36.3516,1217.2,1216.0,55.448]
[1610028693927,4.00959,1216.1,1214.5,6.3174]
[1610028694126,7.48459,1216.1,1215.6,56.1841]
[1610028694325,4.00959,1216.1,1215.6,56.1841]
[1610028695829,4.00959,1215.7,1215.6,56.1841]
[1610028697138,4.00959,1215.7,1215.0,53.6021]
[1610028697838,4.00959,1215.3,1215.1,4.00959]
[1610028698437,63.0355,1216.3,1215.1,4.00959]
[1610028698939,32.528,1216.7,1215.1,4.00959]
[1610028699140,2.528,1216.7,1215.3,67.5536]
[1610028699340,30.0,1216.8,1215.3,67.5536]
[1610028699940,4.00959,1215.4,1215.3,67.5536]
[1610028700545,2.1805,1216.5,1215.3,67.5536]
[1610028701542,30.0,1216.8,1215.3,67.5536]
[1610028701743,3.475,1216.9,1215.3,67.5536]
[1610028701941,4.00959,1215.9,1215.7,4.00959]
[1610028702144,2.5725,1216.8,1215.7,4.00959]
[1610028702744,2.5725,1216.8,1215.9,52.1741]
[1610028703443,3.475,1216.9,1215.9,52.1741]
[1610028704044,4.00959,1216.2,1216.0,4.00959]
[1610028705646,3.475,1216.9,1216.0,4.00959]
[1610028705947,4.00959,1216.5,1216.3,4.00959]
[1610028706148,4.00959,1216.5,1216.3,13.45019]
[1610028707347,3.475,1216.9,1216.3,13.45019]
[1610028707948,4.00959,1216.4,1216.3,13.45019]
[1610028710151,4.00959,1216.4,1216.3,9.4406]
[1610028714054,4.00959,1216.4,1216.3,13.45019]
[1610028714455,4.00959,1216.4,1216.3,9.4406]
[1610028716057,4.00959,1216.4,1216.3,13.45019]
[1610028716659,3.475,1216.9,1216.3,13.45019]
[1610028718062,4.00959,1216.8,1216.5,4.00959]
[1610028718462,4.00959,1216.8,1216.3,9.4406]
[1610028720070,4.00959,1216.4,1216.3,9.4406]
[1610028722370,3.475,1216.9,1216.3,9.4406]
[1610028724075,4.00959,1216.4,1216.3,9.4406]
[1610028726479,3.475,1216.9,1216.3,9.4406]
[1610028728082,3.475,1216.9,1216.4,4.00959]
[1610028728583,3.475,1216.9,1216.5,59.8159]
[1610028729183,3.475,1216.9,1216.4,4.00959]
[1610028729382,3.475,1216.9,1216.5,63.5934]
[1610028729583,3.475,1216.9,1216.4,4.00959]
[1610028729783,3.475,1216.9,1216.5,52.8538]
[1610028730083,4.00959,1216.7,1216.5,52.8538]
[1610028731086,3.475,1216.9,1216.5,52.8538]
[1610028731484,3.475,1216.9,1216.4,4.00959]
[1610028732084,3.475,1216.9,1216.8,4.00959]
[1610028732483,7.48459,1217.7,1216.8,4.00959]
[1610028732685,3.475,1217.7,1216.8,4.00959]
[1610028732884,3.475,1217.7,1217.5,68.2348]
[1610028733284,19.698,1218.6,1217.5,68.2348]
[1610028733484,12.786,1218.6,1217.5,68.2348]
[1610028733885,9.6736,1218.6,1217.5,68.2348]
[1610028734083,4.00959,1218.1,1217.8,4.00959]
[1610028734285,4.00959,1218.1,1217.9,9.2668]
[1610028735684,3.475,1218.6,1217.9,9.2668]
[1610028735884,3.475,1218.6,1217.8,4.00959]
[1610028736084,3.475,1218.6,1218.5,4.00959]
[1610028736286,17.142,1218.7,1218.5,4.00959]
[1610028736687,17.142,1218.7,1218.5,57.82409]
[1610028738287,10.92159,1218.7,1218.5,57.82409]
[1610028738890,10.92159,1218.7,1218.5,53.8145]
[1610028741898,10.92159,1218.7,1218.2,4.00959]
[1610028742096,10.92159,1218.7,1218.0,62.0654]
[1610028742298,4.00959,1218.3,1218.0,66.07499]
[1610028742597,6.912,1218.7,1218.0,66.07499]
[1610028744199,4.00959,1218.3,1218.2,4.00959]
[1610028747906,6.912,1218.7,1218.2,4.00959]
[1610028748306,4.00959,1218.3,1218.2,4.00959]
[1610028748708,6.912,1218.7,1218.2,4.00959]
[1610028749109,6.912,1218.7,1218.5,68.5326]
[1610028750208,6.912,1218.7,1218.6,4.00959]
[1610028755315,3.475,1219.2,1218.6,4.00959]
[1610028755515,20.617,1220.0,1218.6,4.00959]
[1610028756315,20.617,1220.0,1219.0,4.00959]
[1610028756615,20.617,1220.0,1219.1,49.0586]
[1610028756817,3.475,1220.0,1219.1,49.0586]
[1610028758319,4.00959,1219.2,1219.1,49.0586]
[1610028760920,4.00959,1219.2,1218.8,4.00959]
[1610028762322,4.00959,1219.0,1218.8,4.00959]
[1610028762521,2.2813,1219.7,1218.8,4.00959]
[1610028763622,10.387,1220.0,1219.1,67.2717]
[1610028763822,3.475,1220.0,1219.1,67.2717]
[1610028764422,4.00959,1219.2,1219.1,67.2717]
[1610028764724,4.00959,1219.2,1218.8,4.00959]
[1610028766322,4.00959,1219.0,1218.8,4.00959]
[1610028766723,4.00959,1219.0,1218.7,64.9151]
[1610028768328,4.00959,1219.0,1218.8,4.00959]
[1610028768727,4.00959,1219.0,1218.7,64.9151]
[1610028770430,4.00959,1218.8,1218.5,4.00959]
[1610028770833,4.00959,1218.8,1217.5,60.5131]
[1610028771033,7.48459,1218.8,1217.5,60.5131]
[1610028772334,3.475,1218.8,1218.2,4.00959]
[1610028772735,36.491,1219.5,1218.2,4.00959]
[1610028773135,6.491,1219.5,1218.2,4.00959]
[1610028773737,6.491,1219.5,1218.2,50.27049]
[1610028774437,4.00959,1218.3,1218.2,4.00959]
[1610028774637,6.15419,1218.3,1218.2,4.00959]
[1610028776040,6.15419,1218.3,1218.2,52.77879]
[1610028776439,4.00959,1218.3,1218.2,52.77879]
[1610028776640,4.00959,1218.3,1218.2,4.00959]
[1610028779647,4.00959,1218.3,1217.9,58.5264]
[1610028780445,4.00959,1218.0,1217.9,62.53599]
[1610028785050,4.00959,1218.0,1217.9,4.00959]
[1610028793264,3.475,1218.6,1217.9,4.00959]
[1610028794567,3.475,1218.6,1218.1,4.00959]
[1610028795566,9.1094,1218.9,1218.1,4.00959]
[1610028796568,4.00959,1218.2,1218.1,4.00959]
[1610028797671,4.00959,1218.2,1218.1,11.10829]
[1610028798270,9.1094,1218.9,1218.1,11.10829]
[1610028798471,6.912,1218.9,1218.1,11.10829]
[1610028798670,6.912,1218.9,1218.5,4.00959]
[1610028800671,6.912,1218.9,1218.8,4.00959]
[1610028800872,4.00959,1219.2,1218.8,4.00959]
[1610028801272,3.475,1219.4,1219.1,61.6019]
[1610028802272,50.617,1221.0,1219.1,61.6019]
[1610028802675,4.00959,1219.2,1219.1,65.61149]
[1610028803473,2.4142,1220.2,1219.1,65.61149]
[1610028803675,5.8892,1220.2,1219.1,65.61149]
[1610028804677,5.8892,1220.2,1219.3,4.00959]
[1610028804877,2.4142,1220.2,1219.3,4.00959]
[1610028806077,2.4142,1220.2,1219.1,61.6019]
[1610028806279,5.8892,1220.2,1219.1,61.6019]
[1610028806677,5.8892,1220.2,1219.2,4.00959]
[1610028808678,4.00959,1219.4,1219.2,4.00959]
[1610028812392,4.00959,1219.4,1218.9,61.5722]
[1610028812787,5.8892,1220.2,1219.2,4.00959]
[1610028814789,4.00959,1219.3,1219.2,4.00959]
[1610028823597,4.00959,1219.3,1218.9,61.5722]
[1610028823798,4.00959,1219.3,1218.4,52.4876]
[1610028824798,106.1909,1219.8,1218.8,4.00959]
[1610028825000,76.1909,1219.8,1218.8,4.00959]
[1610028825200,106.1909,1219.8,1218.8,4.00959]
[1610028825798,106.1909,1219.8,1218.4,52.4876]
[1610028826299,108.9515,1219.8,1218.4,52.4876]
[1610028826802,4.00959,1218.6,1218.5,4.00959]
[1610028827103,2.6272,1219.5,1218.5,4.00959]
[1610028828801,4.00959,1218.6,1218.5,4.00959]
[1610028829402,4.00959,1218.6,1216.9,5.9384]
[1610028829601,7.48459,1218.6,1216.9,5.9384]
[1610028829809,7.48459,1218.6,1217.2,66.3985]
[1610028830812,4.00959,1218.1,1218.0,4.00959]
[1610028834105,3.475,1218.6,1218.0,4.00959]
[1610028834306,3.475,1218.6,1218.1,56.0323]
[1610028834909,3.475,1218.6,1218.5,4.00959]
[1610028835707,3.475,1218.6,1218.5,49.75249]
[1610028836508,6.1022,1219.5,1218.7,58.572]
[1610028836906,6.1022,1219.5,1219.1,4.00959]
[1610028837512,2.6272,1219.5,1219.1,4.00959]
[1610028837913,39.4262,1220.6,1219.1,4.00959]
[1610028838813,4.00959,1219.2,1219.1,4.00959]
[1610028842117,20.617,1219.8,1219.1,4.00959]
[1610028842315,13.705,1219.8,1219.1,13.21719]
[1610028842915,4.00959,1219.2,1219.1,13.21719]
[1610028845524,4.00959,1219.2,1219.1,9.2076]
[1610028845727,13.705,1219.8,1217.6,5.7041]
[1610028845919,20.617,1219.8,1217.6,5.7041]
[1610028846121,20.617,1219.8,1218.5,66.2772]
[1610028846820,20.617,1219.8,1218.9,4.00959]
[1610028848125,20.617,1219.8,1218.9,10.71549]
[1610028848823,4.00959,1219.0,1218.9,10.71549]
[1610028849025,4.00959,1219.0,1218.9,4.00959]
[1610028850924,4.00959,1219.0,1218.7,4.00959]
[1610028851727,4.00959,1219.0,1218.6,62.086]
[1610028852930,22.6151,1219.8,1218.6,62.086]
[1610028854831,4.00959,1218.8,1218.6,66.09559]
[1610028856331,52.6151,1219.8,1218.6,66.09559]
[1610028856632,22.6151,1219.8,1218.6,66.09559]
[1610028856931,22.6151,1219.8,1218.6,62.086]
[1610028858933,22.6151,1219.8,1218.9,4.00959]
[1610028859332,22.6151,1219.8,1218.9,70.22879]
[1610028860935,4.00959,1219.3,1219.2,4.00959]
[1610028864737,10.387,1219.8,1219.2,4.00959]
[1610028864937,4.00959,1219.6,1219.5,4.00959]
[1610028867140,4.00959,1219.6,1219.2,56.127]
[1610028868942,4.00959,1219.3,1219.2,56.127]
[1610028872346,4.00959,1219.3,1218.7,57.121]
[1610028872948,33.475,1219.8,1219.1,4.00959]
[1610028873448,3.475,1219.8,1219.1,4.00959]
[1610028874248,33.475,1219.8,1219.1,4.00959]
[1610028875048,4.00959,1219.2,1219.1,4.00959]
[1610028876050,4.00959,1219.2,1219.1,63.91999]
[1610028883758,4.00959,1219.2,1219.1,4.00959]
[1610028885763,4.00959,1219.2,1219.0,55.6942]
[1610028887071,4.00959,1219.2,1219.0,59.70379]
[1610028887469,4.00959,1219.2,1219.0,4.00959]
[1610028887673,4.00959,1219.2,1217.8,63.2552]
[1610028887869,7.48459,1219.2,1217.8,63.2552]
[1610028889171,4.00959,1218.9,1218.7,4.00959]
[1610028890473,4.00959,1218.9,1217.8,63.2552]
[1610028890672,7.48459,1218.9,1217.8,63.2552]
[1610028891074,7.48459,1218.9,1218.8,4.00959]
[1610028891075,3.475,1218.9,1218.8,4.00959]
[1610028891276,4.00959,1219.1,1218.8,4.00959]
[1610028893177,4.00959,1219.1,1219.0,4.00959]
[1610028907092,4.00959,1219.4,1219.0,4.00959]
[1610028907494,4.00959,1219.4,1219.1,51.0749]
[1610028908194,4.00959,1219.4,1219.0,4.00959]
[1610028908394,4.00959,1219.4,1219.3,48.2497]
[1610028909195,4.00959,1219.4,1219.3,52.25929]
[1610028909694,10.387,1219.8,1219.3,52.25929]
[1610028910797,6.912,1219.8,1219.3,52.25929]
[1610028911197,6.912,1219.8,1219.7,4.00959]
[1610028911399,4.00959,1219.9,1219.7,12.72609]
[1610028911598,4.00959,1219.9,1219.7,8.7165]
[1610028914005,4.00959,1219.9,1219.5,4.00959]
[1610028914206,4.00959,1219.9,1219.8,63.5772]
[1610028915108,4.00959,1219.9,1219.8,67.58679]
[1610028915311,6.4618,1220.4,1219.8,67.58679]
[1610028917212,6.4618,1220.4,1220.0,4.00959]
[1610028917413,2.9868,1220.4,1220.0,4.00959]
[1610028917614,6.912,1220.6,1220.0,4.00959]
[1610028918618,6.912,1220.6,1219.8,63.5772]
[1610028919218,6.912,1220.6,1220.0,4.00959]
[1610028919520,10.0,1220.4,1220.0,4.00959]
[1610028919725,10.0,1220.4,1218.0,5.7072]
[1610028919923,13.475,1220.4,1219.3,63.8446]
[1610028920519,13.475,1220.4,1218.0,5.7072]
[1610028920720,13.475,1220.4,1219.6,64.7021]
[1610028921218,13.475,1220.4,1219.8,4.00959]
[1610028922019,43.475,1220.4,1219.8,4.00959]
[1610028923021,13.475,1220.4,1219.8,4.00959]
[1610028923220,13.475,1220.4,1220.0,4.00959]
[1610028923421,10.0,1220.4,1220.0,4.00959]
[1610028925225,4.00959,1220.1,1220.0,4.00959]
[1610028926326,10.0,1220.4,1220.1,62.5806]
[1610028927229,10.0,1220.4,1220.3,4.00959]
[1610028929229,14.00959,1220.4,1220.3,4.00959]
[1610028932232,14.00118607,1220.4,1220.3,4.00959]
[1610028932832,14.00118607,1220.4,1219.7,59.9331]
[1610028933236,9.99159607,1220.4,1220.2,4.00959]
[1610028937238,14.00118607,1220.4,1220.2,4.00959]
[1610028937437,9.99159607,1220.4,1220.2,4.00959]
[1610028939339,14.00118607,1220.4,1220.2,4.00959]
[1610028940943,14.00118607,1220.4,1219.6,48.3705]
[1610028941342,9.99159607,1220.4,1220.0,4.00959]
[1610028942345,9.99159607,1220.4,1219.1,58.5972]
[1610028943347,9.99159607,1220.4,1219.5,4.00959]
[1610028944350,39.99159607,1220.4,1219.1,58.5972]
[1610028945353,4.00959,1219.3,1219.1,58.5972]
[1610028945550,39.99159607,1220.4,1219.1,58.5972]
[1610028945951,39.99159607,1220.4,1217.8,6.1836]
[1610028946152,39.99159607,1220.4,1217.8,60.8406]
[1610028946552,39.99159607,1220.4,1217.8,54.657]
[1610028947353,4.00959,1219.1,1218.9,4.00959]
[1610028948454,5.5115,1219.7,1218.9,4.00959]
[1610028949457,4.00959,1219.2,1218.9,4.00959]
[1610028951458,4.00959,1219.2,1219.1,4.00959]
[1610028951656,4.00959,1219.2,1218.6,60.6644]
[1610028952059,4.00959,1219.2,1216.1,12.0738]
[1610028952259,4.00959,1219.2,1217.4,63.5958]
[1610028952459,4.00959,1219.2,1216.1,12.0738]
[1610028952658,4.00959,1219.2,1217.3,47.5154]
[1610028952860,4.00959,1219.2,1216.1,12.0738]
[1610028953058,4.00959,1219.2,1217.4,64.1294]
[1610028953257,4.00959,1219.2,1216.1,12.0738]
[1610028953458,4.00959,1219.2,1219.1,4.00959]
[1610028956559,4.00959,1219.2,1218.3,62.4352]
[1610028957462,4.00959,1219.2,1218.8,4.00959]
[1610028958563,4.00959,1219.2,1218.3,62.4352]
[1610028959362,4.00959,1218.7,1218.5,4.00959]
[1610028960266,2.65,1219.4,1218.5,4.00959]
[1610028961466,4.00959,1218.9,1218.5,4.00959]
[1610028962868,4.00959,1218.9,1218.3,62.4352]
[1610028963470,4.00959,1218.6,1218.4,4.00959]
[1610028965580,2.65,1219.4,1218.4,4.00959]
[1610028965871,30.0,1219.6,1218.4,4.00959]
[1610028967573,30.0,1219.6,1218.3,62.4352]